[Event "Silver Lake Festival 2022"]
[Site "Veliko Gradiste"]
[Date "2022.06.21"]
[Round "4.7"]
[White "Radovanovic, Nikola"]
[Black "Maksimovic, Branimir"]
[Result "1-0"]
[ECO "E99"]
[WhiteElo "2423"]
[BlackElo "2247"]
[Annotator "TA"]
[PlyCount "120"]
[EventDate "2022.06.16"]
[EventType "swiss"]
[EventCountry "SRB"]
[SourceTitle "playchess.com"]
[Source "ChessBase"]
[SourceQuality "1"]
[TimeControl "5400+30"]

{[%evp 33,120,60,70,43,59,66,106,-57,0,0,0,-75,-69,-275,-263,-298,-154,-123,-141,-142,-54,-54,-54,-128,-103,-102,-80,-543,-566,-550,-533,-484,-506,-29937,-5916,-1147,-239,-233,-217,-200,-123,-110,-111,-257,-250,-822,35,-842,106,96,99,89,100,90,105,75,77,0,44,41,253,252,504,479,445,72,311,97,90,93,604,599,623,623,599,611,925,925,943,943,923,923,904,879,867,860,690,677,565]} 1. d4 {[%emt 0:03:15]} Nf6 {[%emt 0:00:03]} 2. c4 {[%emt 0:00:07]} g6 {[%emt 0:00:13]} 3. Nc3 {[%emt 0:00:21]} Bg7 {[%emt 0:00:04]} 4. e4 {[%emt 0:01:51]} d6 {[%emt 0:00:04]} 5. Be2 {[%emt 0:02:46]} O-O {[%emt 0:00:12]} 6. Nf3 {[%emt 0:01:51]} e5 {[%emt 0:01:13]} 7. O-O {[%emt 0:00:08]} Nc6 {[%emt 0:00:53]} 8. d5 {[%emt 0:00:29]} Ne7 {[%emt 0:00:03]} 9. Ne1 {[%emt 0:02:39]} Nd7 {[%emt 0:02:14]} 10. Nd3 {[%emt 0:00:10]} f5 {[%emt 0:00:27]} 11. f3 {[%emt 0:01:14]} f4 {[%emt 0:01:07]} 12. Bd2 {[%emt 0:00:08]} g5 {[%emt 0:00:41]} 13. Rc1 {[%emt 0:00:42]} Ng6 {[%emt 0:02:17]} 14. c5 {[%emt 0:00:26]} Rf7 {[%emt 0:01:39]} 15. Nb5 {[%emt 0:23:51]} Nf6 {[%emt 0:00:49]} 16. Ba5 {[%emt 0:00:29]} b6 {[%emt 0:00:55]} 17. cxd6 {[%emt 0:00:06]} cxd6 {[%emt 0:01:12]} 18. Be1 {[%emt 0:00:08] E99: King's Indian: Classical Main Line: 9 Ne1 Nd7 10 f3 f5.} (18. Bb4 $5 {[%cal Rb5d6]}) 18... a6 {[%emt 0:06:20]} 19. Nc3 {[%emt 0:00:14]} h5 {[%emt 0:06:13] [#]} 20. h3 $146 {[%emt 0:01:59] Inhibits g4.} (20. Nb4 $16) ({Predecessor:} 20. Nb4 g4 21. Na4 Rb7 22. Bxa6 Rxa6 23. Nxa6 b5 24. Ba5 Qxa5 25. Rxc8+ Kh7 26. N4c5 Ra7 27. Qe1 Qxa2 28. Nb4 Qc4 29. b3 Qd4+ 30. Kh1 {1-0 (30) Meier,G (2658)-Bromberger,S (2510) Zuerich 2009}) 20... Bh6 {[%emt 0:00:34]} (20... g4 $15) 21. Nb4 $11 {[%emt 0:02:53]} g4 {[%emt 0:00:22]} 22. Nc6 {[%emt 0:17:44]} (22. hxg4 hxg4 23. fxg4 Rh7 $15) (22. Na4 $1 $11 Nxe4 23. Bd3 (23. fxe4 f3 $11) (23. hxg4 Ng3 $17)) 22... Qf8 $17 {[%emt 0:00:05]} 23. fxg4 $2 {[%emt 0:01:43]} ({White should try} 23. Kh1 $15) 23... hxg4 $19 {[%emt 0:01:10]} 24. hxg4 {[%emt 0:05:19]} f3 {[%emt 0:00:25]} (24... Bg5 $19 {aiming for ...Rh7.} 25. Nb1 Qh6) 25. Rxf3 $17 {[%emt 0:03:17] Strongly threatening Bd2.} (25. gxf3 $2 Be3+ 26. Bf2 Qh6 27. Ne7+ (27. Bxe3 $2 Qxe3+ 28. Rf2 Nxg4 $19) 27... Rxe7 28. Bxe3 Qxe3+ 29. Rf2 Nxg4 $1 {[%mdl 512]} 30. fxg4 Rf7 $19) 25... Nxg4 {[%emt 0:07:55]} (25... Bxc1 26. Qxc1 Nf4 27. Rxf4 exf4 28. g5 $11) 26. Bd2 {[%emt 0:02:41] Prevents Be3+.} Bf4 {[%emt 0:21:48] Prevents Rg3.} (26... Bxd2 $17 27. Qxd2 Nf4 28. Rxf4 (28. Rg3 Rg7 $17) 28... Rxf4) 27. Bxf4 $15 {[%emt 0:09:08]} exf4 {[%emt 0:00:07]} 28. Nd4 {[%emt 0:01:05]} (28. Qd2 $15) 28... Ne3 {[%emt 0:17:00]} (28... Qh6 29. Rh3 Qg5 30. Bxg4 Qxg4 31. Nf3 $16) 29. Qd2 {[%emt 0:03:44]} Qh6 $1 $36 {[%emt 0:01:19][%mdl 2048] Keeping White busy.} 30. Ne6 $2 {[%emt 0:02:12][%mdl 8192]} (30. Nd1 $17 {was the crucial defense.} Nh4 31. Rxe3 fxe3 32. Qxe3) 30... Bxe6 $19 {[%emt 0:00:59]} (30... Rh7 31. Rh3 Nh4 32. Bf1 $11) 31. dxe6 {[%emt 0:00:05]} Rh7 {[%emt 0:00:55]} 32. Rh3 {[%emt 0:05:24] Against Qh1+} Qg5 {[%emt 0:00:16][%csl Ge3,LRg2,LRh3][%cal Rg5g2]} 33. Rxe3 {[%emt 0:00:20]} (33. Bg4 $19 Qxg4 34. Nd5) 33... fxe3 {[%emt 0:00:22]} 34. Qd5 {[%emt 0:00:12] [#]} Qh4 $2 {[%emt 0:05:13]} 35. e7+ {[%emt 0:01:26]} (35. Qxa8+ Nf8) 35... Kg7 {[%emt 0:02:31][%csl Gh7][%cal Rh4h1]} 36. Qd4+ {[%emt 0:00:09]} Ne5 {[%emt 0:00:11][%csl Gh7][%cal Rh4h1]} 37. Qxe3 {[%emt 0:00:20]} Kh8 {[%emt 0:02:40] Hoping for ...Rg8.} 38. Nd5 {[%emt 0:00:56]} (38. Rf1 $17 {only move.}) 38... Rg8 {[%emt 0:00:42]} 39. Bf3 $2 {[%emt 0:01:36]} (39. Nf4) 39... Qg3 $2 {[%emt 0:07:01]} (39... Nxf3+ 40. Qxf3 Qh1+ 41. Kf2 Qxc1 42. Qf6+ Rhg7 43. Qh4+ Rh7 44. Qf6+ Rhg7 45. Qh4+ Rh7 46. Qf6+ $11) (39... Qh2+ $19 40. Kf2 Rf7) 40. Rf1 $2 {[%emt 0:01:21][%mdl 8192]} (40. Kf1 $14 Qg7 41. Rc7 Rh1+ 42. Ke2) 40... Rh2 $2 {[%emt 0:02:25]} (40... Rh3 $1 $19 {( -> ...Qh4)} 41. Rf2 Nxf3+ 42. Qxf3 Qh2+ 43. Kf1 Rxf3 44. gxf3 Rg1+ 45. Ke2 Qe5) 41. Rf2 $16 {[%emt 0:00:39]} Qh4 {[%emt 0:02:07][%csl Gh4][%cal Rh2h1]} 42. Kf1 {[%emt 0:00:13][%cal Bg1f1,Bf1e2,Be2d2][%mdl 32]} b5 {[%emt 0:02:15]} 43. Ke2 {[%emt 0:00:59][%cal Og2g3]} Rc8 {[%emt 0:01:54] [#]} 44. Qc3 $3 {[%emt 0:02:09][%mdl 512]} Re8 {[%emt 0:00:47]} 45. Qe3 {[%emt 0:00:50] White is more active.} (45. Rf1 $16) 45... Kg7 {[%emt 0:00:06]} 46. b3 {[%emt 0:00:31]} Rc8 $2 {[%emt 0:00:24] [#]} (46... Qh6 $14) 47. Kd2 $1 $18 {[%emt 0:01:05]} b4 $2 {[%emt 0:00:29]} (47... Qh6 48. Be2 Qxe3+ 49. Kxe3 Rh6) 48. Be2 {[%emt 0:00:42] Threatens to win with g3.} Rh1 {[%emt 0:02:33]} 49. Bxa6 $2 {[%emt 0:02:35]} (49. g3 $18 {and the rest is easy.} Qh6 50. Qxh6+ Rxh6 51. Bxa6) 49... Ra8 $2 {[%emt 0:00:03]} (49... Rb1 $16 50. e8=N+ (50. Bxc8 Rb2+ 51. Kc1 Rxf2 $11) 50... Rxe8) 50. Qf4 $2 {[%emt 0:00:34]} Qxf4+ $16 {[%emt 0:00:09]} 51. Rxf4 {[%emt 0:00:10] Dancing on a razor blade.} Ng6 $2 {[%emt 0:00:18][%mdl 8192] [#]} (51... Rxa6 $16 52. e8=N+ (52. e8=Q $2 {is a self mate.} Rxa2+ 53. Ke3 Re1+ 54. Kd4 Rd2#) 52... Kg8 53. Nxb4 Ra8) 52. Rg4 $1 $18 {[%emt 0:00:39] White is clearly winning.} Kf7 {[%emt 0:00:13] [#]} (52... Rhh8 53. Bb5) 53. Rxg6 $1 {[%emt 0:00:38][%mdl 512]} Kxg6 {[%emt 0:00:24]} 54. Nc7 {[%emt 0:00:21]} Ra1 {[%emt 0:00:35]} 55. Nxa8 {[%emt 0:00:21] Threatening mate with Nc7.} Rxa2+ {[%emt 0:00:02]} 56. Ke3 {[%emt 0:00:28]} Kf7 {[%emt 0:00:05]} 57. Nc7 {[%emt 0:00:27]} Kxe7 {[%emt 0:00:02]} 58. Nd5+ {[%emt 0:00:17]} Ke6 {[%emt 0:00:17]} 59. Nxb4 {[%emt 0:01:15]} Rxg2 {[%emt 0:00:03]} 60. Kd4 {[%emt 0:00:10]} Rd2+ {[%emt 0:00:14] Weighted Error Value: White=0.86/Black=1.11} 1-0

[Event "Silver Lake Festival 2022"]
[Site "Veliko Gradiste"]
[Date "2022.06.21"]
[Round "4.8"]
[White "Manish Anto Cristiano F"]
[Black "Krstulovic, Alex"]
[Result "1/2-1/2"]
[ECO "C01"]
[WhiteElo "2071"]
[BlackElo "2413"]
[Annotator "TA"]
[PlyCount "66"]
[EventDate "2022.06.16"]
[EventType "swiss"]
[EventCountry "SRB"]
[SourceTitle "playchess.com"]
[Source "ChessBase"]
[SourceQuality "1"]
[TimeControl "5400+30"]

{[%evp 10,66,16,13,29,9,28,15,8,10,31,24,25,0,0,0,0,0,0,-12,0,-7,-8,-27,6,0,0,-30,-29,-52,0,0,33,-9,0,-42,-36,-60,-60,-61,-60,-69,-69,-71,-60,-65,-52,-52,-24,-22,-14,-41,-14,-21,0,-39,0,-30,0]} 1. e4 {[%emt 0:00:10]} e6 {[%emt 0:01:28]} 2. d4 {[%emt 0:00:19]} d5 {[%emt 0:00:10]} 3. exd5 {[%emt 0:03:37]} exd5 {[%emt 0:00:10]} 4. Bd3 {[%emt 0:00:06]} Nc6 {[%emt 0:05:28][%cal Bb8c6,Bc6b4,Bb4d3][%mdl 32]} 5. Ne2 {[%emt 0:10:09]} Bd6 {[%emt 0:10:25]} 6. Nbc3 {[%emt 0:00:14]} Nb4 {[%emt 0:03:40] C01: French: Exchange Variation.} 7. Nb5 {[%emt 0:01:36]} Nxd3+ {[%emt 0:14:26]} 8. Qxd3 {[%emt 0:00:30]} Ne7 {[%emt 0:00:05] The position is equal.} 9. Nxd6+ {[%emt 0:03:49]} Qxd6 {[%emt 0:00:03]} 10. Bf4 {[%emt 0:06:49]} Qb4+ {[%emt 0:00:21]} 11. Qc3 {[%emt 0:00:12]} (11. Nc3 {seems wilder.} Bf5 12. Qe3 O-O-O 13. O-O-O) 11... Qxc3+ {[%emt 0:00:07]} 12. Nxc3 {[%emt 0:00:06] [#] Hoping for Nb5.} c6 {[%emt 0:00:48] [#] Inhibits Nb5.} 13. O-O-O $146 {[%emt 0:00:12]} ({Predecessor:} 13. Kd2 Be6 14. Rhe1 Ng6 15. Be5 Nxe5 16. Rxe5 Kd7 17. Rae1 Rhe8 18. Na4 b6 19. b3 {½-½ (38) Monakhov,K-Konovalov,I Ekaterinburg 2000}) 13... Be6 {[%emt 0:01:58]} 14. Rhe1 {[%emt 0:02:18]} Kd7 {[%emt 0:00:31]} 15. Ne2 {[%emt 0:01:53]} f6 {[%emt 0:04:05]} 16. Bd2 {[%emt 0:03:44]} g5 {[%emt 0:04:00]} 17. f4 {[%emt 0:11:27]} h6 {[%emt 0:05:18]} 18. Ng3 {[%emt 0:06:59]} Bg4 $1 {[%emt 0:02:10]} 19. Bb4 {[%emt 0:02:18]} Rhe8 {[%emt 0:03:41]} ({Black should play} 19... Rh7 $15 20. Rd2 gxf4) 20. fxg5 $1 $11 {[%emt 0:09:39]} hxg5 {[%emt 0:10:47]} 21. Rd2 {[%emt 0:10:55][%cal Bd1d2,Bd2f2,Bf2f1,Bf1h1][%mdl 32]} (21. Rd3 $5 {[%cal Rh2h3]}) 21... Nf5 {[%emt 0:11:26]} 22. Rxe8 {[%emt 0:03:16]} (22. Rf1 $5 {[%cal Rg3f5]} a5 23. Bc3 Nxg3 24. hxg3 $11) 22... Rxe8 {[%emt 0:00:01]} 23. Rf2 {[%emt 0:00:16]} Nxg3 {[%emt 0:01:39]} ({Of course not} 23... Nxd4 24. Rxf6 Ne2+ 25. Nxe2 Rxe2 26. h3 $11) 24. hxg3 $15 {[%emt 0:00:02][%mdl 4096] Endgame KRB-KRB} Ke6 {[%emt 0:01:46]} 25. Rf1 {[%emt 0:04:41]} Bf5 {[%emt 0:00:13]} 26. Rh1 {[%emt 0:02:06]} Kf7 {[%emt 0:01:28] Strongly threatening ...Re2.} 27. Kd2 {[%emt 0:00:53] Prevents Re2+.} Re4 {[%emt 0:00:39]} 28. c3 {[%emt 0:00:50]} Rg4 {[%emt 0:00:05]} 29. Bd6 {[%emt 0:00:31]} Kg7 {[%emt 0:02:04]} 30. a4 {[%emt 0:02:37]} Be4 {[%emt 0:00:26]} (30... c5 $5) 31. Rh2 {[%emt 0:00:12]} Bf5 {[%emt 0:04:38]} 32. Rh1 {[%emt 0:00:19]} Be4 {[%emt 0:00:35]} (32... c5 $5) 33. Rh2 {[%emt 0:00:02]} Bf5 {[%emt 0:00:08] Weighted Error Value: White=0.10 (very precise) /Black=0.12 (very precise)} 1/2-1/2

[Event "Silver Lake Festival 2022"]
[Site "Veliko Gradiste"]
[Date "2022.06.21"]
[Round "4.9"]
[White "Anuj Shrivatri"]
[Black "Herega, Nejc"]
[Result "1-0"]
[ECO "D42"]
[WhiteElo "2356"]
[BlackElo "2160"]
[Annotator "TA"]
[PlyCount "51"]
[EventDate "2022.06.16"]
[EventType "swiss"]
[EventCountry "SRB"]
[SourceTitle "playchess.com"]
[Source "ChessBase"]
[SourceQuality "1"]
[TimeControl "5400+30"]

{[%evp 16,51,0,-2,18,12,10,16,22,22,22,14,16,13,45,45,64,66,62,62,258,237,244,256,245,230,496,476,1495,1495,1664,1668,1892,1822,29996,29997,29997,29998]} 1. Nf3 {[%emt 0:00:09]} Nf6 {[%emt 0:00:26]} 2. c4 {[%emt 0:00:06]} c5 {[%emt 0:00:31]} 3. Nc3 {[%emt 0:00:05]} Nc6 {[%emt 0:00:44]} 4. e3 {[%emt 0:00:08]} e6 {[%emt 0:01:25]} 5. d4 {[%emt 0:00:07]} d5 {[%emt 0:01:05]} 6. cxd5 {[%emt 0:00:06]} Nxd5 {[%emt 0:03:58]} 7. Bd3 {[%emt 0:00:07]} Be7 {[%emt 0:02:14] 7...Be7 scores better than 7...cxd4.} 8. O-O {[%emt 0:03:23]} O-O {[%emt 0:01:26]} 9. a3 {[%emt 0:00:07]} b6 {[%emt 0:06:01] D42: Queen's Gambit Declined: Semi-Tarrasch: 5 cxd5 Nxd5 6 e3 Nc6 7 Bd3 .} 10. Qc2 {[%emt 0:09:44]} Nxc3 {[%emt 0:10:16]} 11. Qxc3 {[%emt 0:11:16]} Bb7 {[%emt 0:04:13] The position is equal.} 12. dxc5 {[%emt 0:00:46]} bxc5 {[%emt 0:05:56]} 13. Qc2 {[%emt 0:00:25]} h6 {[%emt 0:01:37]} 14. Bd2 {[%emt 0:00:48]} Qb6 {[%emt 0:04:38]} 15. Bc3 {[%emt 0:04:18]} Rac8 {[%emt 0:03:36]} 16. Qa4 {[%emt 0:02:53]} Rfd8 {[%emt 0:04:11]} 17. Rfd1 {[%emt 0:00:45][%cal Bf1d1,Bd1d6,Bd6d7][%mdl 32] [#] White is more active.} Rd6 $146 {[%emt 0:03:37] This costs Black the game.} ({Black should play} 17... Qc7 $14) ({Predecessor:} 17... Bf8 18. Qe4 g6 19. Qf4 Bg7 20. h4 Qc7 21. Qg4 Bxc3 22. bxc3 Ne5 23. Nxe5 Qxe5 24. Rab1 Ba8 25. h5 {½-½ (25) Semyonov,K (2240)-Amanov,Z (2382) Astrakhan 2008}) 18. Qg4 $40 {[%emt 0:03:17][%csl Gc3][%cal Rg4g7][%mdl 128] Black is in trouble.} Bf8 {[%emt 0:02:15] [#]} 19. Bh7+ $1 {[%emt 0:05:10][%mdl 512]} Kxh7 {[%emt 0:02:50]} 20. Rxd6 {[%emt 0:00:26] Threatens to win with Rad1.} f5 $2 {[%emt 0:00:23] [#]} (20... Qc7 {was necessary.}) 21. Qh5 $1 {[%emt 0:01:38]} ({Not} 21. Qg3 Nd4 22. Rxd4 (22. exd4 Qxd6 23. Ne5 g5 $11) (22. Ng5+ Kg8 $14) 22... cxd4 23. Bxd4 Qc7 24. Qxc7 (24. Ne5 $2 Qc1+ 25. Rxc1 Rxc1#) 24... Rxc7 $16) 21... Kg8 {[%emt 0:04:25]} (21... Qc7 $142 22. Rxe6 Kg8 23. Qxf5 Rd8) 22. Rd7 {[%emt 0:01:14] Threatening mate with Qf7+.} Ne7 {[%emt 0:00:32]} 23. Ne5 {[%emt 0:00:10]} Rd8 {[%emt 0:01:05]} 24. Qf7+ {[%emt 0:00:10]} Kh8 {[%emt 0:00:10]} 25. Ng6+ {[%emt 0:00:25]} Nxg6 {[%emt 0:00:16]} 26. Bxg7+ {[%emt 0:00:14] Weighted Error Value: White=0.01 (flawless) /Black=0.92} 1-0

[Event "Silver Lake Festival 2022"]
[Site "Veliko Gradiste"]
[Date "2022.06.21"]
[Round "4.10"]
[White "Tadic, Stefan"]
[Black "Phatak Aanjaneya"]
[Result "1-0"]
[ECO "C65"]
[WhiteElo "2358"]
[BlackElo "2145"]
[Annotator "TA"]
[PlyCount "61"]
[EventDate "2022.06.16"]
[EventType "swiss"]
[EventCountry "SRB"]
[SourceTitle "playchess.com"]
[Source "ChessBase"]
[SourceQuality "1"]
[TimeControl "5400+30"]

{[%evp 11,60,1,2,0,0,-3,59,62,68,76,86,30,85,90,98,97,104,120,107,104,145,143,151,114,115,92,137,127,109,149,132,60,360,120,183,172,283,276,276,275,277,276,29991,29992,29996,29997,29997,29998,29998,29999,29999]} 1. e4 {[%emt 0:00:28]} e5 {[%emt 0:00:39]} 2. Nf3 {[%emt 0:02:30]} Nc6 {[%emt 0:00:08]} 3. Bb5 {[%emt 0:00:18]} Nf6 {[%emt 0:00:09]} 4. d3 {[%emt 0:00:50]} Bc5 {[%emt 0:00:13]} 5. O-O {[%emt 0:04:07]} Nd4 {[%emt 0:02:25]} 6. Nxd4 {[%emt 0:01:04]} Bxd4 {[%emt 0:00:11]} 7. c3 {[%emt 0:00:16] C65: Ruy Lopez: Berlin Defence (3...Nf6), unusual lines and 4 0-0 Bc5.} Bb6 {[%emt 0:00:32]} 8. d4 {[%emt 0:04:45] Recently 8.Ba4 got a lot of attention.} c6 {[%emt 0:00:07]} (8... O-O $11) 9. dxe5 $14 {[%emt 0:01:39] White is slightly better.} cxb5 {[%emt 0:00:06]} 10. exf6 {[%emt 0:00:06]} Qxf6 {[%emt 0:00:06] [#]} 11. Qh5 $146 {[%emt 0:06:57]} (11. Na3 $16) ({Predecessor:} 11. Qd3 a6 12. Be3 Bc7 13. Nd2 O-O 14. f4 d5 15. exd5 Bf5 16. Qd4 Qxd4 17. Bxd4 {1-0 (66) Bachmann,A (2599)-Donchenko,A (2658) Chess.com INT 2020}) 11... Qc6 {[%emt 0:03:52]} (11... a6 $11) 12. Qe5+ $16 {[%emt 0:05:04]} Kf8 {[%emt 0:01:28]} 13. Bf4 {[%emt 0:02:48]} f6 {[%emt 0:01:17]} 14. Qh5 {[%emt 0:00:54]} d6 {[%emt 0:06:04]} 15. Na3 {[%emt 0:11:08]} a6 {[%emt 0:00:48]} 16. Rad1 {[%emt 0:00:05]} Bc7 {[%emt 0:00:37]} (16... Qxe4 $2 17. Rde1 $1 Bxf2+ 18. Kxf2 Qxf4+ 19. Kg1 $18) 17. Rd4 {[%emt 0:16:50] White is much more active. The black rooks are badly placed.} Be6 {[%emt 0:01:22]} 18. Rfd1 $36 {[%emt 0:01:03][%mdl 2048] White is really pushing.} Bxa2 {[%emt 0:09:55]} 19. Bxd6+ {[%emt 0:13:04]} Bxd6 {[%emt 0:00:08]} 20. Rxd6 {[%emt 0:00:02]} Qxe4 {[%emt 0:00:43]} 21. Qc5 {[%emt 0:00:04]} (21. Rd8+ Rxd8 22. Rxd8+ Ke7 $17) ({White should play} 21. R6d4 $1 $16 {[%cal Rd4e4]} Qc6 22. Rd8+ Ke7 23. R8d2 (23. Qe2+ Be6 $11)) 21... Kf7 $2 {[%emt 0:06:43][%mdl 8192] [#]} (21... Kg8 $1 $14) 22. f3 $2 {[%emt 0:04:30]} (22. Qc7+ $1 $18 {and the rest is easy.} Kg6 23. R6d3 (23. Rd7 Kh6 $16)) 22... Qe5 {[%emt 0:06:46]} (22... Rhc8 $2 23. Rd7+ (23. fxe4 Rxc5 24. Rd7+ Kf8 $11) 23... Kg6 24. Qf2 $16 (24. fxe4 Rxc5 25. Rxb7 Re5 $11)) (22... Qf4 $16) 23. Rd7+ $18 {[%emt 0:00:27]} Kg6 {[%emt 0:00:15]} (23... Kg8 $142 24. Qxe5 fxe5) 24. Qxe5 {[%emt 0:01:31]} fxe5 {[%emt 0:00:03]} 25. R1d6+ {[%emt 0:00:04]} (25. Rxb7 Rhf8 $14) 25... Kf5 {[%emt 0:00:13] [#]} 26. Nc2 $1 {[%emt 0:06:58] Threatening mate with Ne3+.} ({Not} 26. Rxb7 Rhd8 27. Rdb6 (27. Rxd8 Rxd8 28. Rxg7 Kf4 $14) 27... Kf4 $14) (26. Rxg7 Rad8 27. Rgd7 Rxd7 28. Rxd7 h5 $14) 26... g6 $2 {[%emt 0:02:26]} (26... Bb3 {leads to mate.} 27. Ne3+ Kf4 28. Kf2 Rhf8 29. g3+ Kg5 30. Rxg7+ Kh5 31. Rxh7+ Kg5 32. h4#) (26... Rhg8 $18 27. h4 (27. Rxb7 Rgd8 $14) 27... g5 28. Rxh7 gxh4 29. Rh5+ Kf4 30. Rf6+ Kg3) 27. h4 {[%emt 0:01:31] White mates.} Kf4 {[%emt 0:00:53]} 28. Kf2 {[%emt 0:00:08][%cal Rd6f6]} e4 {[%emt 0:01:17]} 29. g3+ {[%emt 0:00:05]} Ke5 {[%emt 0:00:54]} 30. f4+ {[%emt 0:00:05]} Kf5 {[%emt 0:00:04]} 31. Ne3# {[%emt 0:00:02] Weighted Error Value: White=0.20 (precise) /Black=0.55} 1-0

[Event "Silver Lake Festival 2022"]
[Site "Veliko Gradiste"]
[Date "2022.06.21"]
[Round "4.11"]
[White "Srdanovic, Jovana"]
[Black "Martic, Ivan"]
[Result "1-0"]
[ECO "E94"]
[WhiteElo "2127"]
[BlackElo "2314"]
[Annotator "TA"]
[PlyCount "63"]
[EventDate "2022.06.16"]
[EventType "swiss"]
[EventCountry "SRB"]
[SourceTitle "playchess.com"]
[Source "ChessBase"]
[SourceQuality "1"]
[TimeControl "5400+30"]

{[%evp 17,63,56,66,55,82,54,56,33,47,31,42,35,35,38,29,34,37,35,35,38,36,45,54,47,60,39,60,88,93,43,203,223,212,217,204,207,199,172,493,484,472,376,516,535,663,657,609,575]} 1. d4 {[%emt 1:31:00]} d6 {[%emt 1:31:00]} 2. c4 {[%emt 0:00:30]} Nd7 {[%emt 0:00:30]} 3. Nc3 {[%emt 0:00:30]} e5 {[%emt 0:00:30]} 4. Nf3 {[%emt 0:00:30]} Ngf6 {[%emt 0:00:30]} 5. e4 {[%emt 0:00:30]} g6 {[%emt 0:00:30]} 6. Be2 {[%emt 0:00:30]} Bg7 {[%emt 0:00:30]} 7. O-O {[%emt 0:00:30]} O-O {[%emt 0:00:30]} 8. Be3 {[%emt 0:00:30] 8.Be3 scores better than 8.Re1.} Re8 {[%emt 0:00:30]} 9. d5 {[%emt 0:00:30]} Nh5 {[%emt 0:00:30]} 10. g3 {[%emt 0:00:30] E94: King's Indian: Classical: 6 Be2 e5 7 0-0: Various Black 7th moves.} Bf8 {[%emt 0:00:30]} 11. b4 {[%emt 0:00:30] White is more active.} Be7 {[%emt 0:00:30] [#]} 12. Qd2 $146 {[%emt 0:00:30] White is slightly better.} ({Predecessor:} 12. Nd2 Ng7 13. Rc1 f5 14. f3 Rf8 15. Bf2 h5 16. Kh1 Bg5 17. Rc2 Nf6 18. Qe1 {1-0 (66) Erdos,V (2582)-Dembo,Y (2456) Budva 2009}) 12... Ng7 {[%emt 0:00:30]} 13. Bh6 {[%emt 0:00:30]} Nf6 {[%emt 0:00:30]} 14. Ng5 {[%emt 0:00:30]} Ng4 {[%emt 0:00:30]} 15. Bxg4 {[%emt 0:00:30]} Bxg4 {[%emt 0:00:30]} 16. f3 {[%emt 0:00:30][%cal Bf2f3,Bf3f4][%mdl 32]} Bd7 {[%emt 0:00:30]} 17. f4 {[%emt 0:00:30] [#] And now fxe5 would win.} f6 {[%emt 0:00:30]} 18. Nf3 {[%emt 0:00:30]} Bh3 {[%emt 0:00:30]} 19. Rf2 {[%emt 0:00:30]} a5 {[%emt 0:00:30]} 20. b5 {[%emt 0:00:30]} Qd7 {[%emt 0:00:30]} 21. c5 {[%emt 0:00:30][%cal Bc4c5,Bc5c6][%mdl 32]} exf4 {[%emt 0:00:30]} 22. c6 $36 {[%emt 0:00:30][%mdl 2048] White has strong initiative.} Qg4 {[%emt 0:00:30]} 23. Qxf4 {[%emt 0:00:30]} ({Much worse is} 23. cxb7 $6 fxg3 24. hxg3 Rab8 $14) (23. Bxf4 $16 b6 24. a4) 23... Qh5 $2 {[%emt 0:00:30] [#] This costs Black the game.} (23... Qxf4 $14 24. Bxf4 (24. gxf4 f5 $14) 24... b6) 24. Bxg7 {[%emt 0:00:30]} Kxg7 {[%emt 0:00:30]} 25. cxb7 {[%emt 0:00:30]} Rab8 {[%emt 0:00:30]} 26. Ne2 {[%emt 0:00:30][%cal Bc3e2,Be2f4,Bf4e6][%mdl 32]} Rxb7 {[%emt 0:00:30]} 27. Qc1 {[%emt 0:00:30] Black must now prevent Qc6.} Rxb5 $2 {[%emt 0:00:30]} (27... g5) 28. Nf4 $18 {[%emt 0:00:30]} Qg4 {[%emt 0:00:30]} 29. Nd4 {[%emt 0:00:30]} Rb4 {[%emt 0:00:30]} 30. Nfe6+ {[%emt 0:00:30] Pair of Knights! White is clearly winning.} Kh8 {[%emt 0:00:30]} 31. Rf4 {[%emt 0:00:30]} Qh5 {[%emt 0:00:30]} 32. Rh4 {[%emt 0:00:30] Weighted Error Value: White=0.11 (very precise) /Black=0.45} 1-0